[Event "Late-Titled-Tuesday-Blitz-March-05-2024"]
[Site "Chess.com"]
[Date "2024.03.05"]
[Round "1"]
[White "OrtizAnahi2001"]
[Black "KerryStead"]
[Result "1-0"]
[WhiteElo "2543"]
[BlackElo "2046"]
[TimeControl "180+1"]
[EndTime "14:07:47 PST"]
[Termination "OrtizAnahi2001 won by resignation"]

1. d4 {[%clk 0:03:00.4]} 1... c5 {[%clk 0:02:47.1]} 2. d5 {[%clk 0:02:59.6]}
2... f5 {[%clk 0:02:46.6]} 3. c4 {[%clk 0:02:59.1]} 3... g6 {[%clk 0:02:46.4]}
4. Nc3 {[%clk 0:02:59.1]} 4... Bg7 {[%clk 0:02:45.4]} 5. Nf3 {[%clk 0:02:59.7]}
5... Bxc3+ {[%clk 0:02:43.9]} 6. bxc3 {[%clk 0:02:59]} 6... Qa5 {[%clk
0:02:44.8]} 7. Bd2 {[%clk 0:02:58.1]} 7... d6 {[%clk 0:02:44.7]} 8. e3 {[%clk
0:02:48.8]} 8... Nf6 {[%clk 0:02:44.1]} 9. Bd3 {[%clk 0:02:48.8]} 9... Nbd7
{[%clk 0:02:42.5]} 10. O-O {[%clk 0:02:48.3]} 10... Nb6 {[%clk 0:02:33.4]} 11.
Re1 {[%clk 0:02:43.4]} 11... Bd7 {[%clk 0:02:32.9]} 12. Ng5 {[%clk 0:02:42.2]}
12... h6 {[%clk 0:02:20]} 13. Ne6 {[%clk 0:02:40.3]} 13... Bxe6 {[%clk
0:02:19.9]} 14. dxe6 {[%clk 0:02:41.2]} 14... O-O-O {[%clk 0:02:12.5]} 15. Qf3
{[%clk 0:02:40]} 15... Qa4 {[%clk 0:02:04.2]} 16. Reb1 {[%clk 0:02:34.5]} 16...
Rhf8 {[%clk 0:01:33.3]} 17. e4 {[%clk 0:02:20.1]} 17... fxe4 {[%clk 0:01:30.2]}
18. Bxe4 {[%clk 0:02:21]} 18... Nxe4 {[%clk 0:01:30]} 19. Qxe4 {[%clk
0:02:20.9]} 19... Qxc4 {[%clk 0:01:29.9]} 20. Qxc4 {[%clk 0:02:07.3]} 20... Nxc4
{[%clk 0:01:30.8]} 21. Bxh6 {[%clk 0:02:07.3]} 21... Rf6 {[%clk 0:01:30.8]} 22.
Re1 {[%clk 0:02:06]} 22... Ne5 {[%clk 0:01:25.6]} 23. Bg5 {[%clk 0:01:56.9]}
23... Rf5 {[%clk 0:01:19.1]} 24. Bxe7 {[%clk 0:01:56.4]} 24... Re8 {[%clk
0:01:19.4]} 25. Bxd6 {[%clk 0:01:56.5]} 25... Rxe6 {[%clk 0:01:19.5]} 26. Bxc5
{[%clk 0:01:56.4]} 26... b6 {[%clk 0:01:19.4]} 27. Bd4 {[%clk 0:01:55.8]} 27...
Kd7 {[%clk 0:01:17.5]} 28. Rad1 {[%clk 0:01:54]} 28... Ke7 {[%clk 0:01:17.5]}
29. h3 {[%clk 0:01:45.9]} 29... Nc4 {[%clk 0:01:11.8]} 30. Rxe6+ {[%clk
0:01:44.5]} 30... Kxe6 {[%clk 0:01:12.7]} 31. Re1+ {[%clk 0:01:45.4]} 31... Kd5
{[%clk 0:01:12.4]} 32. Re7 {[%clk 0:01:45.3]} 32... a5 {[%clk 0:01:10]} 33. Rb7
{[%clk 0:01:41.7]} 33... Kc6 {[%clk 0:01:07.9]} 34. Rg7 {[%clk 0:01:41.4]} 34...
g5 {[%clk 0:01:06.9]} 35. g4 {[%clk 0:01:40.2]} 35... Rd5 {[%clk 0:01:05.5]} 36.
Rg6+ {[%clk 0:01:39.7]} 36... Kb5 {[%clk 0:01:04.7]} 37. Kg2 {[%clk 0:01:35.4]}
37... Nd6 {[%clk 0:01:03.5]} 38. f4 {[%clk 0:01:28.1]} 38... gxf4 {[%clk
0:01:02.5]} 39. Kf3 {[%clk 0:01:28.4]} 39... Kc4 {[%clk 0:00:57.2]} 40. Kxf4
{[%clk 0:01:25.3]} 40... b5 {[%clk 0:00:57.6]} 41. Be5 {[%clk 0:01:22.5]} 41...
Nf7 {[%clk 0:00:54.9]} 42. Rc6+ {[%clk 0:01:20.1]} 42... Kd3 {[%clk 0:00:54.3]}
43. Bf6 {[%clk 0:01:17.2]} 43... Nd6 {[%clk 0:00:48.7]} 44. g5 {[%clk
0:01:15.4]} 44... Ne8 {[%clk 0:00:39.8]} 45. h4 {[%clk 0:01:13.6]} 45... b4
{[%clk 0:00:36.7]} 46. cxb4 {[%clk 0:01:12.7]} 46... axb4 {[%clk 0:00:37.6]} 47.
h5 {[%clk 0:01:09]} 47... Ra5 {[%clk 0:00:35.9]} 48. h6 {[%clk 0:01:04.9]} 48...
Rxa2 {[%clk 0:00:26.7]} 49. h7 {[%clk 0:01:03.8]} 49... Nxf6 {[%clk 0:00:27.2]}
50. gxf6 {[%clk 0:01:03.2]} 50... Rh2 {[%clk 0:00:26.3]} 51. f7 {[%clk
0:01:01.3]} 51... Rf2+ {[%clk 0:00:25.3]} 52. Ke5 {[%clk 0:00:59]} 52... Rxf7
{[%clk 0:00:24.8]} 53. h8=Q {[%clk 0:00:58.2]} 53... Re7+ {[%clk 0:00:24.7]} 54.
Kd6 {[%clk 0:00:57.5]} 54... Re4 {[%clk 0:00:21.8]} 55. Qh3+ {[%clk 0:00:56.1]}
55... Kd2 {[%clk 0:00:20.5]} 56. Qg2+ {[%clk 0:00:55.1]} 56... Kd3 {[%clk
0:00:19.7]} 57. Qf3+ {[%clk 0:00:55.3]} 57... Re3 {[%clk 0:00:19.6]} 58. Qd5+
{[%clk 0:00:55.4]} 58... Ke2 {[%clk 0:00:19.7]} 59. Rc4 {[%clk 0:00:54.1]} 59...
b3 {[%clk 0:00:16.4]} 60. Re4 {[%clk 0:00:50.8]} 60... b2 {[%clk 0:00:15]} 61.
Rxe3+ {[%clk 0:00:49.8]} 61... Kxe3 {[%clk 0:00:15.2]} 62. Qb3+ {[%clk
0:00:50.7]} 62... Kd4 {[%clk 0:00:14.4]} 63. Qxb2+ {[%clk 0:00:51.6]} 1-0

[Event "Late-Titled-Tuesday-Blitz-March-05-2024"]
[Site "Chess.com"]
[Date "2024.03.05"]
[Round "1"]
[White "Elsa167"]
[Black "Ykow"]
[Result "1-0"]
[WhiteElo "2904"]
[BlackElo "2505"]
[TimeControl "180+1"]
[EndTime "14:07:51 PST"]
[Termination "Elsa167 won by resignation"]

1. d4 {[%clk 0:03:00.2]} 1... d5 {[%clk 0:02:57.8]} 2. c4 {[%clk 0:03:00]} 2...
e6 {[%clk 0:02:56.7]} 3. Nf3 {[%clk 0:02:59.9]} 3... Nf6 {[%clk 0:02:55.5]} 4.
Nc3 {[%clk 0:03:00.6]} 4... c6 {[%clk 0:02:55.5]} 5. Bg5 {[%clk 0:03:00.2]} 5...
h6 {[%clk 0:02:54.3]} 6. Bxf6 {[%clk 0:03:00.2]} 6... Qxf6 {[%clk 0:02:55.2]} 7.
Qc2 {[%clk 0:03:00.8]} 7... Nd7 {[%clk 0:02:47]} 8. e4 {[%clk 0:03:00.5]} 8...
dxe4 {[%clk 0:02:46.1]} 9. Qxe4 {[%clk 0:03:01.4]} 9... Bb4 {[%clk 0:02:43.1]}
10. Bd3 {[%clk 0:03:01.5]} 10... Qe7 {[%clk 0:02:28.3]} 11. O-O {[%clk
0:03:00.6]} 11... Nf6 {[%clk 0:02:27]} 12. Qe2 {[%clk 0:03:00]} 12... O-O {[%clk
0:02:22.1]} 13. Ne4 {[%clk 0:02:46.4]} 13... Rd8 {[%clk 0:02:21.1]} 14. a3
{[%clk 0:02:43.3]} 14... Ba5 {[%clk 0:02:10.6]} 15. Rad1 {[%clk 0:02:27.9]}
15... Bc7 {[%clk 0:02:07.1]} 16. Bb1 {[%clk 0:02:20.4]} 16... Bd7 {[%clk
0:01:33.7]} 17. Rfe1 {[%clk 0:02:19.3]} 17... Be8 {[%clk 0:01:29.7]} 18. g3
{[%clk 0:02:01.8]} 18... a5 {[%clk 0:01:22.9]} 19. Qc2 {[%clk 0:01:55.6]} 19...
g6 {[%clk 0:01:19.4]} 20. h4 {[%clk 0:01:45.7]} 20... Nxe4 {[%clk 0:01:14.9]}
21. Qxe4 {[%clk 0:01:45.4]} 21... Qf6 {[%clk 0:01:15.8]} 22. Ne5 {[%clk
0:01:06]} 22... Bxe5 {[%clk 0:01:15.2]} 23. dxe5 {[%clk 0:00:59.8]} 23... Qe7
{[%clk 0:01:15.3]} 24. h5 {[%clk 0:00:52.7]} 24... Rxd1 {[%clk 0:01:13.3]} 25.
Rxd1 {[%clk 0:00:52.5]} 25... Rd8 {[%clk 0:01:14.2]} 26. Rxd8 {[%clk 0:00:45.4]}
26... Qxd8 {[%clk 0:01:15.1]} 27. hxg6 {[%clk 0:00:46]} 27... fxg6 {[%clk
0:01:14.8]} 28. Bd3 {[%clk 0:00:40.6]} 28... c5 {[%clk 0:00:58.3]} 29. Qe3
{[%clk 0:00:36.4]} 29... Kg7 {[%clk 0:00:54.9]} 30. Be4 {[%clk 0:00:31.3]} 30...
Qd1+ {[%clk 0:00:50.1]} 31. Kg2 {[%clk 0:00:31.4]} 31... b6 {[%clk 0:00:50.6]}
32. Qf4 {[%clk 0:00:27.8]} 32... Qd8 {[%clk 0:00:49.1]} 33. Bf3 {[%clk
0:00:18.7]} 33... g5 {[%clk 0:00:26.8]} 34. Qe4 {[%clk 0:00:18.9]} 34... Bg6
{[%clk 0:00:22.9]} 35. Qb7+ {[%clk 0:00:17.8]} 35... Kg8 {[%clk 0:00:20.5]} 36.
Be4 {[%clk 0:00:11.8]} 36... Bxe4+ {[%clk 0:00:16.4]} 37. Qxe4 {[%clk
0:00:12.7]} 37... Qd7 {[%clk 0:00:16.8]} 38. Qg6+ {[%clk 0:00:12.4]} 38... Kf8
{[%clk 0:00:13.9]} 39. Qxh6+ {[%clk 0:00:12.6]} 39... Ke8 {[%clk 0:00:14.8]} 40.
Qxg5 {[%clk 0:00:10.5]} 40... Qd3 {[%clk 0:00:12.1]} 41. Qg8+ {[%clk 0:00:09.6]}
41... Ke7 {[%clk 0:00:11.9]} 42. Qg7+ {[%clk 0:00:09.5]} 42... Ke8 {[%clk
0:00:12.4]} 43. Qg4 {[%clk 0:00:06]} 43... Ke7 {[%clk 0:00:10.5]} 44. a4 {[%clk
0:00:06.4]} 44... Qc2 {[%clk 0:00:09.6]} 45. Qg7+ {[%clk 0:00:05.4]} 45... Kd8
{[%clk 0:00:09.5]} 46. Qf8+ {[%clk 0:00:05.5]} 46... Kd7 {[%clk 0:00:09.9]} 47.
Qd6+ {[%clk 0:00:05.8]} 47... Ke8 {[%clk 0:00:10.6]} 48. Qxe6+ {[%clk
0:00:06.1]} 48... Kf8 {[%clk 0:00:11.5]} 49. Qf6+ {[%clk 0:00:06.1]} 49... Ke8
{[%clk 0:00:12.1]} 50. e6 {[%clk 0:00:04.1]} 50... Qe4+ {[%clk 0:00:12.4]} 51.
Kg1 {[%clk 0:00:04]} 51... Qe1+ {[%clk 0:00:12.5]} 52. Kh2 {[%clk 0:00:04.6]}
1-0

[Event "Late-Titled-Tuesday-Blitz-March-05-2024"]
[Site "Chess.com"]
[Date "2024.03.05"]
[Round "1"]
[White "NovakRatko"]
[Black "ArtemDyachuk"]
[Result "0-1"]
[WhiteElo "2399"]
[BlackElo "2683"]
[TimeControl "180+1"]
[EndTime "14:07:51 PST"]
[Termination "ArtemDyachuk won on time"]

1. d4 {[%clk 0:02:55.4]} 1... Nf6 {[%clk 0:02:56.2]} 2. c4 {[%clk 0:02:55.1]}
2... g6 {[%clk 0:02:56.7]} 3. Nc3 {[%clk 0:02:53.8]} 3... Bg7 {[%clk 0:02:57.2]}
4. e4 {[%clk 0:02:53.7]} 4... d6 {[%clk 0:02:57.7]} 5. f3 {[%clk 0:02:53.8]}
5... O-O {[%clk 0:02:56.6]} 6. Be3 {[%clk 0:02:53.8]} 6... e5 {[%clk 0:02:47.8]}
7. Nge2 {[%clk 0:02:52]} 7... Nbd7 {[%clk 0:02:35.5]} 8. d5 {[%clk 0:02:47.6]}
8... a5 {[%clk 0:02:34.7]} 9. Qd2 {[%clk 0:02:47.1]} 9... Nc5 {[%clk 0:02:35]}
10. g4 {[%clk 0:02:45.4]} 10... Nfd7 {[%clk 0:02:33.6]} 11. Ng3 {[%clk 0:02:43]}
11... a4 {[%clk 0:02:32.7]} 12. Be2 {[%clk 0:02:38.1]} 12... Qe7 {[%clk
0:02:13.4]} 13. Nb5 {[%clk 0:02:27.8]} 13... Nb6 {[%clk 0:02:06]} 14. Bg5 {[%clk
0:02:17.7]} 14... f6 {[%clk 0:02:04]} 15. Be3 {[%clk 0:02:16.9]} 15... Rd8
{[%clk 0:01:56.3]} 16. h4 {[%clk 0:02:15]} 16... Bf8 {[%clk 0:01:39.7]} 17. Rb1
{[%clk 0:01:53.9]} 17... c6 {[%clk 0:01:38]} 18. dxc6 {[%clk 0:01:46.8]} 18...
bxc6 {[%clk 0:01:38.9]} 19. Nc3 {[%clk 0:01:45.6]} 19... Ba6 {[%clk 0:01:38]}
20. b4 {[%clk 0:01:34.8]} 20... axb3 {[%clk 0:01:27.5]} 21. axb3 {[%clk
0:01:33.5]} 21... d5 {[%clk 0:01:27.1]} 22. exd5 {[%clk 0:01:11.3]} 22... cxd5
{[%clk 0:01:27.1]} 23. b4 {[%clk 0:01:11.2]} 23... d4 {[%clk 0:01:24.8]} 24.
bxc5 {[%clk 0:01:03.3]} 24... dxe3 {[%clk 0:01:23.9]} 25. Qxe3 {[%clk
0:00:17.6]} 25... Qxc5 {[%clk 0:01:23.8]} 26. Qxc5 {[%clk 0:00:16.6]} 26... Bxc5
{[%clk 0:01:24.7]} 27. Nb5 {[%clk 0:00:14.6]} 27... Bxb5 {[%clk 0:01:23.3]} 28.
cxb5 {[%clk 0:00:14.1]} 28... Ra2 {[%clk 0:01:22.8]} 29. Ne4 {[%clk 0:00:14.1]}
29... Be7 {[%clk 0:01:18.5]} 30. Rd1 {[%clk 0:00:12.1]} 30... Rxd1+ {[%clk
0:01:16.9]} 31. Bxd1 {[%clk 0:00:12.3]} 31... Rb2 {[%clk 0:01:16]} 32. O-O
{[%clk 0:00:10.8]} 32... f5 {[%clk 0:01:14.6]} 33. gxf5 {[%clk 0:00:09.5]} 33...
gxf5 {[%clk 0:01:15.5]} 34. Ng3 {[%clk 0:00:10.1]} 34... Bc5+ {[%clk 0:01:00.6]}
35. Kh1 {[%clk 0:00:09.8]} 35... f4 {[%clk 0:01:01]} 36. Ne4 {[%clk 0:00:09.7]}
36... Be3 {[%clk 0:01:01.5]} 37. Nd6 {[%clk 0:00:08.7]} 37... Kf8 {[%clk
0:00:56.6]} 38. Nf5 {[%clk 0:00:06.9]} 38... Rxb5 {[%clk 0:00:56.3]} 39. Nxe3
{[%clk 0:00:07]} 39... fxe3 {[%clk 0:00:57.2]} 40. Re1 {[%clk 0:00:07.8]} 40...
Nd5 {[%clk 0:00:57]} 41. Be2 {[%clk 0:00:07.2]} 41... Rb4 {[%clk 0:00:56.6]} 42.
Bd3 {[%clk 0:00:06.7]} 42... Rxh4+ {[%clk 0:00:56.4]} 43. Kg2 {[%clk 0:00:06.5]}
43... Nf4+ {[%clk 0:00:56]} 44. Kg3 {[%clk 0:00:06.6]} 44... Nxd3 {[%clk
0:00:56.6]} 45. Rxe3 {[%clk 0:00:06.1]} 45... Rd4 {[%clk 0:00:57.1]} 46. Kh3
{[%clk 0:00:01.9]} 46... Kf7 {[%clk 0:00:55.7]} 47. Kg3 {[%clk 0:00:02.8]} 47...
Kf6 {[%clk 0:00:56.1]} 48. Re2 {[%clk 0:00:03.7]} 48... Nf4 {[%clk 0:00:54.1]}
49. Rc2 {[%clk 0:00:03.9]} 49... h5 {[%clk 0:00:53.3]} 50. Rc6+ {[%clk
0:00:03.7]} 50... Kg5 {[%clk 0:00:53.3]} 51. Rc8 {[%clk 0:00:04.4]} 51... h4+
{[%clk 0:00:53.3]} 52. Kf2 {[%clk 0:00:04.6]} 52... Rd2+ {[%clk 0:00:53.6]} 53.
Kf1 {[%clk 0:00:05]} 53... h3 {[%clk 0:00:51.9]} 54. Rg8+ {[%clk 0:00:04.7]}
54... Kh4 {[%clk 0:00:51.8]} 55. Rg4+ {[%clk 0:00:03.9]} 55... Kh5 {[%clk
0:00:51.8]} 56. Rg8 {[%clk 0:00:04.3]} 56... h2 {[%clk 0:00:51.3]} 57. Rh8+
{[%clk 0:00:04.3]} 57... Kg5 {[%clk 0:00:43.6]} 58. Ke1 {[%clk 0:00:05.2]} 58...
Rg2 {[%clk 0:00:41.6]} 59. Rg8+ {[%clk 0:00:03.4]} 59... Kf5 {[%clk 0:00:41.2]}
60. Rf8+ {[%clk 0:00:03.5]} 60... Ke6 {[%clk 0:00:40.7]} 0-1

[Event "Late-Titled-Tuesday-Blitz-March-05-2024"]
[Site "Chess.com"]
[Date "2024.03.05"]
[Round "1"]
[White "K_A_S_T_O_R"]
[Black "ccccvhhhj"]
[Result "1-0"]
[WhiteElo "2804"]
[BlackElo "2469"]
[TimeControl "180+1"]
[EndTime "14:07:52 PST"]
[Termination "K_A_S_T_O_R won by checkmate"]

1. e4 {[%clk 0:03:00.9]} 1... e6 {[%clk 0:03:00.2]} 2. d4 {[%clk 0:03:00.3]}
2... d5 {[%clk 0:03:01.1]} 3. Nc3 {[%clk 0:03:00.7]} 3... Bb4 {[%clk 0:03:01.1]}
4. e5 {[%clk 0:03:01]} 4... c5 {[%clk 0:03:01.2]} 5. a3 {[%clk 0:03:01.5]} 5...
Bxc3+ {[%clk 0:03:01.7]} 6. bxc3 {[%clk 0:03:02.1]} 6... Ne7 {[%clk 0:03:02.6]}
7. Nf3 {[%clk 0:02:57.8]} 7... b6 {[%clk 0:03:02]} 8. Bb5+ {[%clk 0:02:56.4]}
8... Bd7 {[%clk 0:03:01.7]} 9. Bd3 {[%clk 0:02:56.9]} 9... c4 {[%clk 0:03:00.9]}
10. Be2 {[%clk 0:02:56.4]} 10... Ba4 {[%clk 0:03:01.6]} 11. h4 {[%clk
0:02:55.1]} 11... h6 {[%clk 0:03:01.1]} 12. h5 {[%clk 0:02:55.3]} 12... Nbc6
{[%clk 0:03:00.8]} 13. g3 {[%clk 0:02:55]} 13... Kd7 {[%clk 0:03:00.3]} 14. Nh4
{[%clk 0:02:55.1]} 14... Qg8 {[%clk 0:02:59.5]} 15. O-O {[%clk 0:02:53]} 15...
Qh7 {[%clk 0:02:58.8]} 16. Ra2 {[%clk 0:02:53.5]} 16... Kc7 {[%clk 0:02:52.9]}
17. Bg4 {[%clk 0:02:49.8]} 17... Kb7 {[%clk 0:02:51.9]} 18. Qe2 {[%clk
0:02:45.2]} 18... g6 {[%clk 0:02:43.5]} 19. Kh2 {[%clk 0:02:39.9]} 19... Rag8
{[%clk 0:02:40.5]} 20. Rh1 {[%clk 0:02:35.3]} 20... gxh5 {[%clk 0:02:39.2]} 21.
Bxh5 {[%clk 0:02:27.2]} 21... Nf5 {[%clk 0:02:36.3]} 22. Ng2 {[%clk 0:02:23.2]}
22... Qg7 {[%clk 0:02:16.7]} 23. Bf4 {[%clk 0:02:21.1]} 23... Nce7 {[%clk
0:02:10.4]} 24. g4 {[%clk 0:02:15.6]} 24... Nc6 {[%clk 0:01:59.7]} 25. f3 {[%clk
0:02:08]} 25... Nfe7 {[%clk 0:02:00]} 26. Bg3 {[%clk 0:02:05.4]} 26... Ng6
{[%clk 0:01:53.7]} 27. Re1 {[%clk 0:02:00.1]} 27... Nge7 {[%clk 0:01:36]} 28.
Bh4 {[%clk 0:01:58.8]} 28... Qf8 {[%clk 0:01:29.7]} 29. Bf6 {[%clk 0:01:57.1]}
29... Rh7 {[%clk 0:01:28.1]} 30. Nf4 {[%clk 0:01:48.3]} 30... Ng6 {[%clk
0:01:28.4]} 31. Bxg6 {[%clk 0:01:41.1]} 31... fxg6 {[%clk 0:01:28.2]} 32. Nxe6
{[%clk 0:01:41.6]} 32... Qf7 {[%clk 0:01:27.7]} 33. Nf4 {[%clk 0:01:41.8]} 33...
h5 {[%clk 0:01:27.9]} 34. Nh3 {[%clk 0:01:31.8]} 34... hxg4 {[%clk 0:01:27.2]}
35. fxg4 {[%clk 0:01:32.4]} 35... Rgh8 {[%clk 0:00:53.2]} 36. Bxh8 {[%clk
0:01:31.2]} 36... Rxh8 {[%clk 0:00:54.1]} 37. Kg2 {[%clk 0:01:27.9]} 37... g5
{[%clk 0:00:45.2]} 38. Rf1 {[%clk 0:01:22.9]} 38... Qh7 {[%clk 0:00:43.6]} 39.
Rf3 {[%clk 0:01:20.4]} 39... Ne7 {[%clk 0:00:40.8]} 40. Qf2 {[%clk 0:01:17.6]}
40... Ka6 {[%clk 0:00:39.5]} 41. Qg3 {[%clk 0:01:13.1]} 41... Ng6 {[%clk
0:00:39.2]} 42. Kf2 {[%clk 0:01:05.9]} 42... Nh4 {[%clk 0:00:37.5]} 43. Nxg5
{[%clk 0:00:59.7]} 43... Qg6 {[%clk 0:00:31.5]} 44. Nf7 {[%clk 0:00:59.9]} 44...
Nxf3 {[%clk 0:00:12.9]} 45. Nxh8 {[%clk 0:00:59]} 45... Qh7 {[%clk 0:00:13.8]}
46. Qxf3 {[%clk 0:00:53.9]} 46... Qxh8 {[%clk 0:00:14.2]} 47. Kg3 {[%clk
0:00:52.2]} 47... Qh7 {[%clk 0:00:13.4]} 48. Qxd5 {[%clk 0:00:49]} 48... Bxc2
{[%clk 0:00:11.5]} 49. Qxc4+ {[%clk 0:00:48.5]} 49... Kb7 {[%clk 0:00:12.1]} 50.
Qd5+ {[%clk 0:00:48.7]} 50... Ka6 {[%clk 0:00:12.4]} 51. e6 {[%clk 0:00:44.1]}
51... Be4 {[%clk 0:00:12.5]} 52. Qe5 {[%clk 0:00:38.5]} 52... Bc6 {[%clk
0:00:10.7]} 53. d5 {[%clk 0:00:34.5]} 53... Qd3+ {[%clk 0:00:11]} 54. Kf4 {[%clk
0:00:34.9]} 54... Bxd5 {[%clk 0:00:11.2]} 55. e7 {[%clk 0:00:34.7]} 55... Qf3+
{[%clk 0:00:10.8]} 56. Kg5 {[%clk 0:00:34.9]} 56... Bxa2 {[%clk 0:00:06.3]} 57.
e8=Q {[%clk 0:00:34.7]} 57... Qd1 {[%clk 0:00:02.7]} 58. Qc8# {[%clk 0:00:33.7]}
1-0

[Event "Late-Titled-Tuesday-Blitz-March-05-2024"]
[Site "Chess.com"]
[Date "2024.03.05"]
[Round "1"]
[White "Bykov_Egor"]
[Black "larsmandreassen"]
[Result "1-0"]
[WhiteElo "2586"]
[BlackElo "2233"]
[TimeControl "180+1"]
[EndTime "14:07:54 PST"]
[Termination "Bykov_Egor won on time"]

1. e4 {[%clk 0:03:00.1]} 1... d6 {[%clk 0:02:59.9]} 2. d4 {[%clk 0:02:59.6]}
2... Nf6 {[%clk 0:03:00.5]} 3. Nc3 {[%clk 0:02:55.5]} 3... e5 {[%clk 0:03:00.6]}
4. Nf3 {[%clk 0:02:54.4]} 4... Nbd7 {[%clk 0:02:59.7]} 5. Bc4 {[%clk 0:02:53.7]}
5... Be7 {[%clk 0:03:00]} 6. Bb3 {[%clk 0:02:53]} 6... O-O {[%clk 0:03:00]} 7.
O-O {[%clk 0:02:51.6]} 7... c6 {[%clk 0:03:00.1]} 8. a4 {[%clk 0:02:48.4]} 8...
a5 {[%clk 0:02:56.2]} 9. h3 {[%clk 0:02:43.8]} 9... Qc7 {[%clk 0:02:56.2]} 10.
Be3 {[%clk 0:02:41]} 10... b6 {[%clk 0:02:55.1]} 11. Re1 {[%clk 0:02:37.5]}
11... Bb7 {[%clk 0:02:54]} 12. d5 {[%clk 0:02:29.6]} 12... cxd5 {[%clk
0:02:41.5]} 13. exd5 {[%clk 0:02:27.6]} 13... Nc5 {[%clk 0:02:39.5]} 14. Nb5
{[%clk 0:02:14]} 14... Qd7 {[%clk 0:02:34.1]} 15. Bc4 {[%clk 0:02:13.7]} 15...
Rac8 {[%clk 0:02:21.4]} 16. b3 {[%clk 0:02:13]} 16... Rfe8 {[%clk 0:02:14.1]}
17. Nh2 {[%clk 0:01:52.8]} 17... h6 {[%clk 0:02:06.8]} 18. Ng4 {[%clk
0:01:50.4]} 18... Nxg4 {[%clk 0:02:04.6]} 19. Qxg4 {[%clk 0:01:40.5]} 19... f5
{[%clk 0:02:04.1]} 20. Qg6 {[%clk 0:01:38.1]} 20... f4 {[%clk 0:02:02]} 21. Bd2
{[%clk 0:01:05.7]} 21... Rf8 {[%clk 0:01:49.8]} 22. Nc3 {[%clk 0:00:50.9]} 22...
Rf6 {[%clk 0:01:45.3]} 23. Qg4 {[%clk 0:00:47.6]} 23... Qxg4 {[%clk 0:01:18.1]}
24. hxg4 {[%clk 0:00:48.5]} 24... Rd8 {[%clk 0:01:04.1]} 25. f3 {[%clk
0:00:41.4]} 25... g5 {[%clk 0:00:55.2]} 26. Kf2 {[%clk 0:00:29.7]} 26... Kg7
{[%clk 0:00:54.9]} 27. Rh1 {[%clk 0:00:29.4]} 27... Rh8 {[%clk 0:00:54.3]} 28.
Ke2 {[%clk 0:00:27.9]} 28... Bc8 {[%clk 0:00:35.4]} 29. Be1 {[%clk 0:00:20.9]}
29... Bd7 {[%clk 0:00:34.9]} 30. Bf2 {[%clk 0:00:21]} 30... Rff8 {[%clk
0:00:20.6]} 31. Rh3 {[%clk 0:00:18.6]} 31... Be8 {[%clk 0:00:19.1]} 32. Rah1
{[%clk 0:00:18.1]} 32... Bg6 {[%clk 0:00:18.5]} 33. Bxc5 {[%clk 0:00:18.2]}
33... bxc5 {[%clk 0:00:17.6]} 34. Bd3 {[%clk 0:00:18.8]} 34... Bxd3+ {[%clk
0:00:13]} 35. Kxd3 {[%clk 0:00:18.1]} 35... Rb8 {[%clk 0:00:08.2]} 36. Nb5
{[%clk 0:00:17.9]} 36... Rb6 {[%clk 0:00:07.5]} 37. Nc7 {[%clk 0:00:09.7]} 37...
Kg6 {[%clk 0:00:07.7]} 38. Nb5 {[%clk 0:00:08.7]} 38... Rb7 {[%clk 0:00:05.5]}
39. c3 {[%clk 0:00:08.6]} 39... Rh7 {[%clk 0:00:04.1]} 40. Rh5 {[%clk 0:00:09]}
40... Bf8 {[%clk 0:00:03.1]} 41. Rb1 {[%clk 0:00:09.4]} 41... Rhe7 {[%clk
0:00:01.2]} 42. Rhh1 {[%clk 0:00:10]} 42... Rf7 {[%clk 0:00:01.3]} 43. b4 {[%clk
0:00:09.7]} 43... Rh7 {[%clk 0:00:01.7]} 44. bxa5 {[%clk 0:00:09.2]} 44... Rhf7
{[%clk 0:00:01.2]} 45. a6 {[%clk 0:00:09.5]} 1-0

[Event "Late-Titled-Tuesday-Blitz-March-05-2024"]
[Site "Chess.com"]
[Date "2024.03.05"]
[Round "1"]
[White "Rud_2008"]
[Black "Schattman"]
[Result "1-0"]
[WhiteElo "2734"]
[BlackElo "2433"]
[TimeControl "180+1"]
[EndTime "14:07:55 PST"]
[Termination "Rud_2008 won on time"]

1. e4 {[%clk 0:02:58.8]} 1... c6 {[%clk 0:03:00.4]} 2. Nf3 {[%clk 0:02:59]} 2...
d5 {[%clk 0:03:00.4]} 3. d3 {[%clk 0:02:59.9]} 3... Qc7 {[%clk 0:02:59.8]} 4.
exd5 {[%clk 0:03:00.1]} 4... cxd5 {[%clk 0:02:59.5]} 5. c4 {[%clk 0:03:01]} 5...
Nf6 {[%clk 0:02:57.4]} 6. Nc3 {[%clk 0:03:00.9]} 6... Bg4 {[%clk 0:02:54.5]} 7.
cxd5 {[%clk 0:02:59.5]} 7... Nbd7 {[%clk 0:02:49.7]} 8. Be2 {[%clk 0:02:59.6]}
8... g6 {[%clk 0:02:47.9]} 9. O-O {[%clk 0:02:56.8]} 9... Bg7 {[%clk 0:02:47.7]}
10. h3 {[%clk 0:02:57.1]} 10... Bxf3 {[%clk 0:02:48]} 11. Bxf3 {[%clk 0:02:58]}
11... O-O {[%clk 0:02:44.6]} 12. d4 {[%clk 0:02:58.5]} 12... Nb6 {[%clk
0:02:37.2]} 13. Re1 {[%clk 0:02:57.4]} 13... Rad8 {[%clk 0:02:35.8]} 14. Qb3
{[%clk 0:02:56.4]} 14... Rfe8 {[%clk 0:02:32.4]} 15. Bg5 {[%clk 0:02:55.2]}
15... Qc4 {[%clk 0:02:28.4]} 16. Qxc4 {[%clk 0:02:48.6]} 16... Nxc4 {[%clk
0:02:27.7]} 17. b3 {[%clk 0:02:49]} 17... Nd6 {[%clk 0:02:23.6]} 18. Rac1 {[%clk
0:02:46.2]} 18... h6 {[%clk 0:02:18.7]} 19. Bf4 {[%clk 0:02:42.9]} 19... Nd7
{[%clk 0:02:07.8]} 20. Bxd6 {[%clk 0:02:27.7]} 20... exd6 {[%clk 0:02:08]} 21.
Nb5 {[%clk 0:02:28.4]} 21... Rxe1+ {[%clk 0:01:55.1]} 22. Rxe1 {[%clk
0:02:27.5]} 22... Nb6 {[%clk 0:01:45.9]} 23. Re7 {[%clk 0:02:19.5]} 23... a6
{[%clk 0:01:35.9]} 24. Rxb7 {[%clk 0:02:19.1]} 24... axb5 {[%clk 0:01:29.1]} 25.
Rxb6 {[%clk 0:02:19.3]} 25... Bxd4 {[%clk 0:01:28.1]} 26. Rxb5 {[%clk
0:02:19.7]} 26... Rc8 {[%clk 0:01:20.7]} 27. a4 {[%clk 0:01:28.5]} 27... Rc1+
{[%clk 0:01:17.2]} 28. Kh2 {[%clk 0:01:28.3]} 28... Bxf2 {[%clk 0:01:16.6]} 29.
a5 {[%clk 0:01:28.8]} 29... h5 {[%clk 0:01:16.2]} 30. g3 {[%clk 0:01:06.9]}
30... Rc2 {[%clk 0:01:00.6]} 31. Bg2 {[%clk 0:01:06.8]} 31... h4 {[%clk
0:00:56.8]} 32. gxh4 {[%clk 0:01:05.8]} 32... Bxh4 {[%clk 0:00:56.7]} 33. a6
{[%clk 0:01:04.2]} 33... Ra2 {[%clk 0:00:56.1]} 34. Rb6 {[%clk 0:01:04.3]} 34...
Bf6 {[%clk 0:00:54.4]} 35. h4 {[%clk 0:00:56.5]} 35... Kg7 {[%clk 0:00:46.1]}
36. b4 {[%clk 0:00:24.8]} 36... Bd4 {[%clk 0:00:43.9]} 37. Rc6 {[%clk
0:00:24.9]} 37... Kf6 {[%clk 0:00:31]} 38. Rxd6+ {[%clk 0:00:22.9]} 38... Ke5
{[%clk 0:00:30.7]} 39. Rc6 {[%clk 0:00:21.8]} 39... Be3 {[%clk 0:00:26.9]} 40.
d6 {[%clk 0:00:18.9]} 40... Bf4+ {[%clk 0:00:25.7]} 41. Kg1 {[%clk 0:00:16.9]}
41... Be3+ {[%clk 0:00:24.7]} 42. Kh2 {[%clk 0:00:13.9]} 42... Bf4+ {[%clk
0:00:24.2]} 43. Kh3 {[%clk 0:00:14.3]} 43... Ra3+ {[%clk 0:00:20.6]} 44. Bf3
{[%clk 0:00:12.9]} 44... Rxf3+ {[%clk 0:00:19.5]} 45. Kg2 {[%clk 0:00:13.6]}
45... Rg3+ {[%clk 0:00:14.8]} 46. Kf2 {[%clk 0:00:13.3]} 46... Rd3 {[%clk
0:00:09.9]} 47. a7 {[%clk 0:00:13.1]} 47... Be3+ {[%clk 0:00:04.6]} 48. Ke2
{[%clk 0:00:12.8]} 48... Ra3 {[%clk 0:00:04.6]} 49. d7 {[%clk 0:00:13.4]} 49...
Bxa7 {[%clk 0:00:01.9]} 50. d8=Q {[%clk 0:00:13.4]} 1-0